bitfinex-derivatives/quotes_ETHF0:USTF0_20251012
["timestamp","ask_amount","ask_price","bid_price","bid_amount"]
[1760308432965,0.8446,4134.9,4134.3,0.43502]
[1760308433267,0.8446,4134.5,4134.3,0.43502]
[1760308433760,0.8446,4134.4,4134.2,3.64553608]
[1760308434370,0.8446,4134.3,4134.2,3.21050608]
[1760308435558,0.8446,4134.9,4134.2,3.21050608]
[1760308435754,0.8446,4134.9,4134.7,0.43498]
[1760308435960,1.27958,4134.9,4134.5,0.435]
[1760308436164,0.8446,4134.9,4134.5,0.435]
[1760308436365,0.8446,4134.7,4134.6,0.43499]
[1760308436759,0.435,4134.6,4134.3,0.43502]
[1760308436958,0.8446,4134.5,4134.3,0.43502]
[1760308438169,0.8446,4134.7,4134.6,0.43499]
[1760308439582,0.86627265,4138.2,4134.2,3.21050608]
[1760308439583,3.64268,4135.8,4134.5,2.17506]
[1760308439777,3.2078,4135.8,4135.2,0.43493]
[1760308439958,0.43491,4135.5,4135.2,0.43493]
[1760308440270,0.76651,4135.5,4135.2,0.43493]
[1760308440466,0.76651,4135.5,4135.3,0.43492]
[1760308440663,1.1762,4135.5,4134.9,3.2078]
[1760308440966,0.8446,4135.3,4135.2,0.43493]
[1760308441269,3.2078,4136.3,4135.9,0.43486]
[1760308441461,3.2078,4136.3,4136.2,0.571]
[1760308441661,3.2078,4136.3,4135.8,1.08716]
[1760308441662,0.00266148,4136.7,4136.5,1.0058]
[1760308441858,0.00266148,4136.7,4136.5,0.4348]
[1760308442068,1.27939,4136.6,4135.6,3.2078]
[1760308442268,0.3316,4136.0,4135.1,3.2078]
[1760308442468,0.76645,4136.0,4135.6,0.43489]
[1760308442765,0.8446,4135.2,4135.1,3.2078]
[1760308442971,0.8446,4135.2,4134.2,1.09029608]
[1760308442972,0.43498,4134.8,4134.6,3.2078]
[1760308443172,0.8446,4134.7,4134.6,3.2078]
[1760308443368,4.01930296,4134.7,4134.6,3.2078]
[1760308445372,1.27963,4134.3,4134.2,0.00270608]
[1760308446673,3.2078,4134.9,4134.2,0.00270608]
[1760308446674,0.8446,4134.9,4134.6,0.43499]
[1760308446866,0.3316,4135.0,4134.7,0.43498]
[1760308447269,0.43497,4134.9,4134.5,3.2078]
[1760308447465,0.43497,4134.9,4134.2,0.43774608]
[1760308447466,0.43501,4134.5,4134.2,0.43774608]
[1760308447671,0.76661,4134.5,4134.2,0.43774608]
[1760308447967,0.8446,4134.3,4134.2,0.00270608]
[1760308449676,0.3316,4135.0,4134.4,0.43501]
[1760308449677,0.435,4134.6,4134.4,0.43501]
[1760308449970,0.43502,4134.4,4134.2,0.43773608]
[1760308450177,0.8446,4134.3,4134.2,0.00270608]
[1760308451869,0.8446,4134.7,4134.6,0.435]
[1760308452070,1.2796,4134.6,4134.4,0.43501]
[1760308452278,0.8446,4134.5,4134.4,0.43501]
[1760308454272,0.8446,4134.5,4134.2,0.00270608]
[1760308454273,0.8446,4135.2,4134.3,0.571]
[1760308454483,2.3632,4135.4,4135.0,1.0874]
[1760308454776,2.3632,4135.4,4135.3,1.00592]
[1760308454972,2.3632,4135.4,4134.9,1.08742]
[1760308454973,0.43493,4135.3,4135.1,0.43493]
[1760308455274,1.27952,4135.3,4134.5,1.08753]
[1760308455474,0.43494,4135.2,4135.0,0.43495]
[1760308455672,0.8446,4135.1,4135.0,0.43495]
[1760308455868,3.45049,4135.4,4134.4,3.2078]
[1760308456076,0.3316,4135.0,4134.4,3.2078]
[1760308456573,0.43502,4134.4,4134.2,0.00270608]
[1760308456875,3.9434361,4134.3,4134.2,0.00270608]
[1760308460079,0.8446,4134.3,4134.2,0.00270608]
[1760308461385,3.98546199,4134.3,4134.2,0.00270608]
[1760308461880,0.8687,4133.4,4133.3,3.2078]
[1760308462085,0.8687,4132.9,4132.8,3.2078]
[1760308462877,0.87173988,4132.9,4132.8,3.21001857]
[1760308463985,0.00303988,4132.9,4132.8,3.21001857]
[1760308464286,1.30691988,4132.9,4132.8,3.21001857]
[1760308464687,0.87173988,4132.9,4132.8,3.21001857]
[1760308466885,0.8687,4133.6,4133.5,0.43511]
[1760308467085,3.2078,4134.4,4133.5,3.2078]
[1760308467382,1.2086,4133.5,4133.4,0.43512]
[1760308468084,0.00307781,4133.5,4133.4,0.98562]
[1760308469595,0.87177781,4133.5,4133.4,0.43512]
[1760308470588,0.00307781,4133.5,4133.4,0.98562]
[1760308470883,0.00307781,4133.5,4133.4,0.43512]
[1760308471086,0.87177781,4133.5,4133.4,0.43512]
[1760308471387,1.08759,4134.3,4133.4,0.43512]
[1760308471388,0.8687,4134.8,4134.6,0.435]
[1760308471686,0.3399,4135.5,4134.6,3.2078]
[1760308471687,0.43499,4134.7,4134.6,3.2078]
[1760308471891,0.8687,4134.7,4134.6,3.2078]
[1760308472387,0.87052773,4134.7,4134.6,3.2078]
[1760308472586,0.87052773,4134.7,4134.1,1.08761]
[1760308472587,0.43504,4134.3,4134.1,3.64284]
[1760308472785,0.8687,4134.2,4134.1,3.2078]
[1760308472981,4.02197476,4134.2,4134.1,3.2078]
[1760308473984,0.87052773,4134.7,4134.1,3.2078]
[1760308474191,0.3399,4134.5,4134.3,0.43502]
[1760308474383,0.8687,4134.4,4134.3,0.43502]
[1760308476284,0.8687,4134.4,4134.1,3.2078]
[1760308476496,3.09975773,4134.4,4134.1,3.2078]
[1760308476680,1.30374,4134.2,4134.1,3.64285]
[1760308477293,0.8687,4134.2,4134.1,3.64285]
[1760308477488,0.00182773,4134.7,4134.6,0.9855]
[1760308477688,0.00182773,4134.7,4134.6,4.1933]
[1760308480494,0.00182773,4134.7,4134.6,3.6428]
[1760308480788,0.00182773,4134.7,4134.6,4.1933]
[1760308484194,0.00182773,4134.7,4134.6,5.89734602]
[1760308485297,0.00182773,4134.7,4134.6,4.1933]
[1760308485604,1.30821773,4134.7,4134.6,3.6428]
[1760308485896,1.30821773,4134.7,4134.6,3.2078]
[1760308485897,0.87322773,4134.7,4134.6,3.2078]
[1760308486685,0.87322773,4134.7,4134.6,3.6428]
[1760308489297,0.00182773,4134.7,4134.6,4.1718]
[1760308489492,0.00182773,4134.7,4134.6,5.89336797]
[1760308489693,0.00182773,4134.7,4134.6,4.1718]
[1760308489893,0.8714,4135.9,4135.8,0.43487]
[1760308490095,1.30626,4135.9,4135.8,0.43487]
[1760308490295,0.8714,4135.9,4135.8,0.43487]
[1760308490801,0.87380046,4135.9,4135.8,0.43699938]
[1760308491496,1.30866046,4135.9,4135.8,0.43699938]
[1760308491997,0.87380046,4135.9,4135.8,0.43699938]
[1760308492598,0.00240046,4135.9,4135.8,0.95829938]
[1760308496898,3.2078,4136.6,4136.5,0.9561]
[1760308497099,0.833,4137.4,4136.9,0.5213]
[1760308497303,0.3254,4137.5,4137.0,0.5213]
[1760308497502,0.43471,4137.3,4137.2,0.43472]
[1760308497802,0.833,4137.1,4136.8,3.7291]
[1760308498100,0.83481737,4137.1,4136.8,3.7291]
[1760308498497,0.83481737,4137.1,4137.0,0.43474]
[1760308498798,0.83481737,4137.1,4136.8,3.7291]
[1760308498799,0.83481737,4137.1,4136.8,3.2078]
[1760308499010,1.26776,4136.9,4136.8,3.2078]
[1760308499297,0.833,4136.4,4136.3,3.2078]
[1760308499504,1.26781,4136.4,4136.3,3.2078]
[1760308499807,1.26783,4136.2,4136.1,0.43484]
[1760308500104,0.833,4136.2,4136.1,0.43484]
[1760308500508,0.833,4136.9,4136.2,1.60838]
[1760308500807,1.26779,4136.6,4136.5,0.4348]
[1760308502401,0.833,4136.2,4136.1,0.43484]
[1760308502600,0.833,4136.5,4136.4,0.43481]
[1760308503408,1.1775,4136.5,4136.4,0.43481]
[1760308503803,0.43481,4136.4,4136.3,3.2078]
[1760308504002,1.26781,4136.4,4136.3,3.2078]
[1760308504304,0.43486,4135.9,4135.8,0.00212938]
[1760308504608,0.3445,4136.0,4135.2,2.17355853]
[1760308504609,1.26792,4135.3,4135.2,3.2078]
[1760308504802,1.26792,4135.3,4135.2,3.20381169]
[1760308505001,4.45802697,4135.3,4135.2,3.20381169]
[1760308505299,0.833,4135.3,4135.2,3.20381169]
[1760308505495,0.833,4135.3,4135.2,3.20682665]
[1760308506803,0.833,4135.9,4135.2,3.20682665]
[1760308507002,3.5523,4137.0,4136.0,0.5213]
[1760308507207,0.00181737,4137.1,4137.0,0.5213]
[1760308507399,0.00181737,4137.1,4136.4,1.71951132]
[1760308507400,0.3445,4136.5,4136.4,1.71951132]
[1760308507595,0.7793,4136.5,4136.3,3.2078]
[1760308507911,0.833,4135.9,4135.8,3.2078]
[1760308508411,0.833,4135.4,4135.3,0.43492]
[1760308508906,0.3445,4136.0,4135.3,2.15443132]
[1760308509207,0.833,4136.4,4135.8,3.2078]
[1760308509504,3.5523,4137.0,4136.0,2.24081132]
[1760308509704,0.43483,4136.2,4136.0,1.71951132]
[1760308510006,1.26783,4136.2,4136.0,0.43485]
[1760308510199,0.77935,4136.0,4135.8,3.2078]
[1760308510404,0.43492,4135.3,4135.1,1.71951132]
[1760308510607,1.26792,4135.3,4135.0,5.36226132]
[1760308510800,1.26792,4135.3,4135.0,4.92731132]
[1760308510995,1.26792,4135.3,4135.0,3.2078]
[1760308511201,4.46956369,4135.3,4134.9,1.71951132]
[1760308511402,4.46956369,4135.3,4134.7,1.71951132]
[1760308511600,4.46956369,4135.3,4134.5,3.2078]
[1760308511801,4.46956369,4135.3,4134.6,0.43499]
[1760308511999,4.46956369,4135.3,4135.0,3.2078]
[1760308512199,1.26792,4135.3,4135.0,3.2078]
[1760308512403,0.3445,4135.5,4135.0,3.2078]
[1760308512606,0.43491,4135.5,4135.3,0.43492]
[1760308512903,1.08699,4136.6,4135.0,4.92731132]
[1760308512904,0.4348,4136.5,4136.3,0.43481]
[1760308513108,0.43477,4136.8,4136.5,0.43479]
[1760308513611,0.43477,4136.8,4136.6,0.43478]
[1760308513805,0.43477,4136.8,4136.4,3.2078]
[1760308513806,0.43655737,4137.1,4136.9,0.43475]
[1760308514007,0.43655737,4137.1,4137.0,3.2078]
[1760308514210,0.00181737,4137.1,4137.0,3.2078]
[1760308514804,0.00181737,4137.1,4137.0,4.49743551]
[1760308515404,0.83481737,4137.1,4137.0,4.49743551]
[1760308516304,0.83481737,4137.1,4136.5,2.51915066]
[1760308516305,0.833,4136.9,4136.8,1.28963551]
[1760308516507,1.26777,4136.8,4136.7,1.28963551]
[1760308517513,0.43655737,4137.1,4136.9,0.43475]
[1760308517707,0.43655737,4137.1,4137.0,1.29003262]
[1760308517910,1.26955737,4137.1,4137.0,1.29003262]
[1760308518111,0.43655737,4137.1,4136.9,1.72478262]
[1760308518310,0.833,4137.0,4136.9,0.43475]
[1760308520007,0.00181737,4137.1,4136.9,0.43475]
[1760308520308,0.00181737,4137.1,4136.9,1.29063638]
[1760308520309,0.43474,4137.0,4136.9,1.29063638]
[1760308520513,0.43477,4136.8,4136.7,1.29063638]
[1760308520714,1.26777,4136.8,4136.7,1.29063638]
[1760308521808,0.8093,4136.7,4136.6,1.29063638]
[1760308522008,1.24409,4136.6,4136.5,1.29063638]
[1760308523207,4.41030005,4136.6,4136.4,1.29063638]
[1760308523408,0.8093,4136.3,4136.2,1.29063638]
[1760308523812,0.8093,4136.1,4136.0,3.2078]
[1760308524714,1.08713,4136.0,4135.6,1.72075066]
[1760308524911,1.08713,4136.0,4135.5,3.2078]
[1760308524912,0.8093,4135.9,4135.5,3.2078]
[1760308525217,0.8093,4135.6,4135.5,3.2078]
[1760308525823,1.24422,4135.3,4135.2,0.00301496]
[1760308526206,4.35218965,4135.3,4135.2,0.00301496]
[1760308526812,3.91726965,4135.3,4135.2,0.00301496]
[1760308527011,0.8093,4135.3,4135.2,0.00301496]
[1760308530221,0.8093,4135.3,4135.2,0.43794496]
[1760308530519,1.24422,4135.3,4135.2,0.43794496]
[1760308530821,1.28474,4136.1,4135.9,0.43486]
[1760308531022,3.2078,4136.2,4136.1,1.19814]
[1760308531321,0.8499,4136.4,4136.3,0.43481]
[1760308531921,0.00181737,4137.1,4136.4,0.7633]
[1760308532120,0.8499,4136.8,4136.7,0.43477]
[1760308532319,0.3196,4137.0,4136.4,3.2078]
[1760308532320,1.1695,4136.5,4136.4,3.2078]
[1760308532723,0.8499,4136.6,4136.5,0.4348]
[1760308533020,0.75435,4137.0,4136.9,0.43476]
[1760308533227,0.00181737,4137.1,4136.9,3.64256]
[1760308533522,1.1695,4137.0,4136.9,3.2078]
[1760308533719,0.3196,4136.5,4136.0,1.71993343]
[1760308533918,1.1695,4136.0,4135.9,3.2078]
[1760308534223,4.35582646,4136.0,4135.9,3.2078]
[1760308534811,4.03622646,4136.0,4135.9,3.2078]
[1760308535012,4.35582646,4136.0,4135.9,3.2078]
[1760308536018,4.35582646,4136.0,4135.2,0.00301496]
[1760308536019,1.28482,4135.3,4135.2,0.00301496]
[1760308536424,4.37690053,4135.3,4135.2,0.00301496]
[1760308538432,0.8499,4135.3,4135.2,0.00301496]
[1760308539429,3.92778988,4135.3,4135.2,1.496e-05]
[1760308539634,0.75461,4134.5,4134.3,3.2078]
[1760308539835,0.8499,4134.4,4134.3,3.2078]
[1760308540333,3.2078,4134.4,4133.9,1.71993343]
[1760308540526,3.2078,4134.4,4133.7,3.2078]
[1760308540527,0.8499,4133.8,4133.7,3.2078]
[1760308540727,0.85226725,4133.8,4133.7,3.20955608]
[1760308541127,4.03963797,4133.8,4133.7,3.20955608]
[1760308542832,4.03963797,4133.8,4133.7,0.00175608]
[1760308543031,1.28503,4133.3,4133.2,10.87868]
[1760308543437,4.41604595,4133.3,4133.2,10.87868]
[1760308544037,4.41604595,4133.3,4133.2,10.88160348]
[1760308545342,0.43527,4132.0,4131.9,3.9967]
[1760308545542,0.43527,4132.0,4131.9,0.7889]
[1760308545844,0.43527,4132.0,4131.5,0.3101]
[1760308545845,0.43531,4131.6,4131.5,0.3101]
[1760308546241,3.18993377,4131.6,4131.0,0.239]
[1760308546439,3.18993377,4131.6,4129.5,1.3339301]
[1760308546440,0.43552,4129.6,4129.5,1.3339301]
[1760308546746,6.75455374,4129.6,4129.5,1.1457]
[1760308547045,6.31903374,4129.6,4129.5,1.1457]
[1760308547545,6.31903374,4129.6,4129.5,1.14780174]
[1760308547546,6.32080731,4129.6,4129.5,1.14780174]
[1760308548046,6.32080731,4129.6,4129.5,0.31590174]
[1760308548253,6.32080731,4129.6,4129.5,1.14780174]
[1760308549346,0.00177357,4129.6,4129.5,1.14780174]
[1760308550947,3.09233595,4129.6,4129.5,1.14780174]
[1760308552641,0.00177357,4129.6,4129.5,1.58333174]
[1760308553036,0.00177357,4129.6,4129.5,1.14780174]
[1760308553037,3.13873774,4129.6,4129.5,1.14780174]
[1760308554549,3.13873774,4129.6,4129.5,0.31590174]
[1760308554747,0.43558,4129.1,4129.0,0.3138]
[1760308555136,3.53115545,4129.1,4129.0,1.1355]
[1760308555745,3.09557545,4129.1,4129.0,1.13764323]
[1760308558343,0.43557,4129.2,4129.1,0.8217]
[1760308558850,3.14212551,4129.2,4129.1,0.8217]
[1760308559248,3.14212551,4129.5,4129.3,0.43555]
[1760308559545,0.43730357,4129.6,4129.5,1.1635]
[1760308559938,3.07869772,4129.6,4129.5,1.1635]
[1760308561245,0.00177357,4129.6,4129.5,1.1635]
[1760308561747,10.157,4131.4,4129.5,1.1635]
[1760308561748,3.2078,4131.3,4130.6,0.8217]
[1760308561943,3.2078,4131.3,4130.5,0.3418]
[1760308561944,0.43536,4131.2,4131.1,0.8217]
[1760308562143,0.43542,4130.6,4130.5,0.3418]
[1760308562344,3.64322,4130.6,4130.5,0.3418]
[1760308562548,6.82815904,4130.6,4130.5,1.1635]
[1760308564253,6.82815904,4130.6,4130.5,0.3418]
[1760308564552,6.82815904,4130.6,4130.5,1.1635]
[1760308565249,0.43547,4130.1,4130.0,0.3418]
[1760308565454,0.43552,4129.6,4129.5,1.1635]
[1760308565843,3.64898915,4129.6,4129.5,1.1635]
[1760308566047,3.21346915,4129.6,4129.5,1.1635]
[1760308566348,0.00251225,4130.6,4129.6,1.08881]
[1760308566349,3.21346915,4129.8,4129.6,1.08881]
[1760308566547,3.21346915,4129.8,4129.5,3.5496]
[1760308566548,3.21346915,4129.8,4129.7,1.25721]
[1760308566749,3.21346915,4129.8,4129.5,3.5496]
[1760308566750,0.00251225,4130.6,4130.5,1.59893]
[1760308569647,10.157,4131.4,4131.3,0.43534]
[1760308569851,3.64307,4132.1,4132.0,0.3418]
[1760308570055,3.64301,4132.6,4132.5,0.3418]
[1760308570351,6.84966419,4132.6,4132.5,1.1635]
[1760308570654,3.64301,4132.6,4132.5,1.1635]
[1760308570855,6.7822684,4132.6,4132.5,1.16529942]
[1760308571551,6.3470584,4132.6,4132.5,1.16529942]
[1760308572252,3.1392584,4132.6,4132.5,1.16529942]
[1760308574853,3.1392584,4132.6,4132.5,0.34359942]
[1760308575057,3.1392584,4132.6,4132.5,0.00179942]
[1760308575459,3.72031059,4132.6,4132.5,0.00179942]
[1760308575658,3.72031059,4132.6,4132.5,1.16529942]
[1760308576249,3.1392584,4132.6,4132.5,1.16529942]
[1760308579556,0.00203477,4132.6,4132.5,1.16529942]
[1760308582056,0.00203477,4132.6,4132.5,1.60051942]
[1760308582456,0.86627265,4134.6,4132.5,1.60051942]
[1760308582457,3.6428,4134.6,4134.5,1.176]
[1760308582653,3.2078,4134.6,4134.0,0.3261]
[1760308582857,3.2078,4134.6,4133.5,1.176]
[1760308582858,0.43509,4133.7,4133.5,1.176]
[1760308583065,3.2078,4133.6,4133.5,0.3261]
[1760308583264,6.3313963,4133.6,4133.5,1.176]
[1760308583467,3.12532489,4133.6,4133.5,1.176]
[1760308584963,0.00172859,4133.6,4133.5,1.176]
[1760308585360,0.00172859,4133.6,4133.5,1.61111]
[1760308585567,3.2078,4134.6,4134.5,1.61101]
[1760308586070,3.16316649,4134.8,4134.7,0.43499]
[1760308586272,3.2078,4135.7,4135.5,0.3261]
[1760308586571,0.00204173,4135.7,4135.6,0.8499]
[1760308588173,0.43489,4135.6,4135.5,0.32821677]
[1760308588376,0.43489,4135.6,4135.5,1.17811677]
[1760308588675,3.59841687,4135.6,4135.5,1.17811677]
[1760308591377,0.43494,4135.1,4135.0,0.3261]
[1760308591575,3.64274,4135.1,4135.0,0.3261]
[1760308591772,6.85344404,4135.1,4135.0,1.176]
[1760308592080,3.64269,4135.6,4135.5,1.176]
[1760308592271,3.64269,4135.6,4135.5,0.3290973]
[1760308592272,3.2078,4135.6,4135.5,0.3290973]
[1760308592473,6.41850404,4135.6,4135.5,0.3290973]
[1760308593381,3.21070404,4135.6,4135.5,0.3290973]
[1760308593579,10.82295789,4137.2,4137.1,0.8499]
[1760308593580,0.86627265,4137.2,4137.1,0.8499]
[1760308593774,2.15740997,4138.4,4137.1,0.8499]
[1760308593775,1.29940898,4138.3,4138.0,0.3261]
[1760308593971,3.2078,4138.5,4138.1,0.8499]
[1760308594180,3.2078,4138.5,4138.0,0.3261]
[1760308594181,0.43462,4138.2,4138.0,0.3261]
[1760308594374,1.08669,4137.7,4136.7,0.8499]
[1760308594576,1.08669,4137.7,4136.2,0.8499]
[1760308594577,3.2078,4136.8,4136.2,0.8499]
[1760308594781,3.2078,4136.8,4136.6,0.8499]
[1760308594972,3.07384428,4136.7,4136.6,0.8499]
[1760308597982,0.43481,4136.5,4136.1,0.8499]
[1760308598181,0.43481,4136.5,4136.0,0.3261]
[1760308598384,3.17355303,4136.4,4136.2,1.28473]
[1760308598575,3.2078,4136.8,4136.5,0.3261]
[1760308598882,3.17513075,4136.7,4136.6,0.8499]
[1760308599081,3.2078,4136.8,4136.6,0.8499]
[1760308599280,3.17513075,4136.7,4136.6,0.8499]
[1760308599873,3.2078,4136.8,4136.7,0.43478]
[1760308600075,3.2078,4136.8,4136.7,1.28468]
[1760308600280,0.43471,4137.4,4137.3,0.43471]
[1760308600281,3.2078,4137.4,4137.3,0.43471]
[1760308600481,0.22,4139.3,4137.6,1.28458]
[1760308600482,3.2078,4137.9,4137.6,1.28458]
[1760308600671,0.22,4139.3,4138.9,0.8499]
[1760308600672,3.2078,4139.0,4138.9,0.8499]
[1760308601179,6.31410451,4139.0,4138.9,0.8499]
[1760308601382,3.2078,4139.0,4138.9,1.28445]
[1760308601580,0.22,4139.3,4139.2,0.43451]
[1760308601780,0.22280838,4139.3,4139.2,1.28441]
[1760308602280,3.35065701,4139.3,4139.2,0.8499]
[1760308602784,0.22280838,4139.3,4139.2,0.8499]
[1760308612477,0.43451,4139.2,4139.0,0.8121]
[1760308612675,3.64231,4139.2,4139.0,0.8121]
[1760308612875,3.2043063,4139.1,4139.0,0.8121]
[1760308613778,13.03716,4138.7,4137.2,3.2078]
[1760308614085,0.43477,4136.8,4136.7,3.2078]
[1760308614276,0.43477,4136.8,4136.0,0.3521]
[1760308614277,3.2078,4136.8,4136.1,3.2078]
[1760308614477,0.4348,4136.5,4136.2,0.8121]
[1760308614680,0.43481,4136.4,4136.1,3.2078]
[1760308614879,0.00214652,4136.4,4136.1,3.2106251]
[1760308615083,0.00214652,4136.4,4136.2,0.8121]
[1760308615279,0.00214652,4136.4,4136.1,3.2106251]
[1760308615485,0.43482,4136.3,4136.2,0.8121]
[1760308617485,3.53321353,4136.3,4136.2,0.8121]
[1760308617684,6.74101353,4136.3,4136.1,0.0028251]
[1760308620187,0.43493,4135.2,4135.0,4.372]
[1760308620581,0.43493,4135.2,4135.1,0.8121]
[1760308621184,0.43493,4135.2,4135.1,0.81478273]
[1760308621384,3.63781967,4135.2,4135.1,0.81478273]
[1760308621589,3.63781967,4135.2,4135.1,0.00268273]
[1760308621590,6.84561967,4135.2,4135.1,0.00268273]
[1760308621986,6.84561967,4135.2,4135.1,0.81478273]
[1760308623787,3.63781967,4135.2,4135.1,0.81478273]
[1760308623989,3.64269,4135.7,4135.5,0.3521]
[1760308624292,3.64269,4135.7,4135.6,0.8121]
[1760308624683,1.08724,4135.6,4135.1,0.00268273]
[1760308624983,3.64273,4135.2,4135.1,0.00268273]
[1760308625391,0.43504,4134.2,4134.1,3.2078]
[1760308625591,0.43503,4134.3,4134.1,3.2078]
[1760308625794,0.43503,4134.3,4134.2,0.8121]
[1760308626292,3.63675163,4134.3,4134.2,0.81411784]
[1760308628089,0.435,4134.6,4134.5,0.3521]
[1760308628289,0.435,4134.6,4134.5,1.1642]
[1760308629990,3.2078,4135.2,4134.6,0.8121]
[1760308630296,3.17834458,4135.1,4134.7,0.8121]
[1760308630594,0.43497,4134.9,4134.7,0.8121]
[1760308630794,0.43502,4134.4,4134.2,0.00201784]
[1760308631092,3.16027307,4134.3,4134.2,0.81411784]
[1760308631290,3.16027307,4134.3,4134.2,0.00201784]
[1760308632096,3.59530307,4134.3,4134.2,0.81411784]
[1760308632494,0.43503,4134.3,4134.2,0.81411784]
[1760308632794,3.62126477,4134.3,4134.2,0.81411784]
[1760308633190,3.62126477,4134.3,4133.5,0.3521]
[1760308633191,3.18623477,4134.3,4133.5,0.3521]
[1760308633393,3.18623477,4134.3,4133.4,3.2078]
[1760308633394,0.4351,4133.6,4133.4,3.2078]
[1760308633893,3.07822577,4133.5,4133.4,3.2078]
[1760308634198,3.08094707,4133.5,4133.4,3.20964635]
[1760308634696,3.08094707,4133.5,4133.4,0.00184635]
[1760308636589,0.43517,4133.0,4132.9,3.2078]
[1760308636790,0.43517,4133.0,4132.9,4.0199]
[1760308636997,3.10582808,4133.0,4132.9,4.0199]
[1760308637388,3.10582808,4133.1,4133.0,1.1642]
[1760308637590,0.43515,4133.2,4133.0,1.16646184]
[1760308637987,3.08315212,4133.1,4133.0,1.16646184]
[1760308638594,3.08315212,4133.1,4133.0,0.00226184]
[1760308639700,3.08315212,4133.1,4133.0,1.16646184]
[1760308642101,3.08315212,4133.1,4133.0,0.00226184]
[1760308643001,3.51831212,4133.1,4133.0,0.00226184]
[1760308643409,0.43516,4133.1,4133.0,0.00226184]
[1760308643594,3.6224758,4133.1,4133.0,0.00226184]
[1760308649808,3.6224758,4133.1,4133.0,1.16686184]
[1760308650408,0.0027213,4133.5,4133.0,1.16686184]
[1760308650602,0.43513,4133.4,4133.1,0.8203]
[1760308650797,0.43513,4133.4,4133.0,0.34656184]
[1760308650798,3.21391373,4133.3,4133.0,0.00226184]
[1760308651107,0.43516,4133.1,4133.0,0.00226184]
[1760308651509,3.60701629,4133.1,4133.0,0.00226184]
[1760308651710,2.17586,4133.0,4131.5,1.1724]
[1760308651912,0.4353,4131.8,4131.6,0.8203]
[1760308652207,6.93641931,4133.1,4130.2,1.27587923]
[1760308652208,0.43545,4130.3,4130.2,1.27587923]
[1760308652402,0.43549,4129.9,4129.6,3.2078]
[1760308652605,0.43547,4130.1,4129.6,3.2078]
[1760308652803,3.19671083,4129.8,4129.7,0.8203]
[1760308653005,0.43551,4129.7,4129.6,3.21056147]
[1760308653206,0.43551,4129.7,4129.6,0.00276147]
[1760308653415,3.54647036,4129.7,4129.6,0.00276147]
[1760308654611,3.11096036,4129.7,4129.6,0.82306147]
[1760308655106,3.2078,4130.0,4128.6,0.8203]
[1760308655107,0.43559,4129.0,4128.6,0.8203]
[1760308655312,0.43559,4129.0,4128.4,3.2078]
[1760308655605,3.0943944,4128.9,4128.6,0.8203]
[1760308656009,3.18977057,4129.2,4128.6,0.8203]
[1760308656213,0.43556,4129.3,4128.6,0.82343658]
[1760308656507,3.18977057,4129.2,4129.0,3.5521]
[1760308656712,3.2078,4130.3,4129.6,0.8203]
[1760308656904,0.43543,4130.5,4129.6,0.8203]
[1760308656905,0.43543,4130.5,4130.0,1.1646]
[1760308657104,0.43541,4130.7,4130.0,1.1646]
[1760308657305,3.10975789,4130.1,4130.0,1.1646]
[1760308658711,0.43555,4129.4,4129.0,3.5521]
[1760308659016,3.10975789,4130.1,4128.7,0.8203]
[1760308659017,0.43557,4129.2,4128.7,0.8203]
[1760308659313,3.65068087,4129.1,4128.7,0.8203]
[1760308659501,3.21510087,4129.1,4128.5,0.3443]
[1760308659705,3.21510087,4129.2,4128.5,0.3443]
[1760308659904,3.2078,4129.7,4128.7,0.8203]
[1760308660105,3.20514882,4129.1,4128.7,0.8203]
[1760308660306,3.20514882,4129.1,4128.5,0.77994]
[1760308660506,3.2078,4129.7,4129.1,0.43557]
[1760308660706,3.2078,4129.7,4129.1,1.25587]
[1760308660917,3.20514882,4129.4,4129.0,0.3443]
[1760308661208,3.2078,4129.7,4129.0,1.1646]
[1760308661413,3.21293556,4129.4,4129.0,1.1646]
[1760308661614,3.21293556,4129.5,4129.0,1.1646]
[1760308661811,0.00201037,4130.1,4128.6,0.00313658]
[1760308661812,3.2078,4129.1,4128.6,0.00313658]
[1760308662217,3.2078,4129.1,4128.7,0.8203]
[1760308662407,3.2078,4129.6,4128.8,0.4356]
[1760308662612,3.07573403,4129.0,4128.9,0.8203]
[1760308662812,3.07573403,4129.4,4128.9,0.8203]
[1760308663018,3.2078,4129.6,4128.9,0.8203]
[1760308663213,3.17074047,4129.3,4128.6,0.43875658]
[1760308663416,3.17074047,4129.3,4128.6,0.00313658]
[1760308663608,3.2078,4129.1,4128.6,0.00313658]
[1760308664115,0.4356,4128.9,4128.6,0.00313658]
[1760308664316,3.76456302,4128.8,4127.0,0.3443]
[1760308664509,4.20031302,4127.5,4126.8,3.2078]
[1760308664708,3.2078,4127.0,4126.3,4.0267]
[1760308664911,3.2078,4127.0,4126.4,0.43586]
[1760308665111,3.18438352,4126.9,4126.4,0.43586]
[1760308665311,3.18717179,4126.9,4126.4,0.4381552]
[1760308665513,3.18717179,4126.9,4126.8,0.8189]
[1760308665713,3.18717179,4126.9,4126.8,4.0267]
[1760308665714,0.00278827,4126.9,4126.8,4.0267]
[1760308669524,3.13195938,4126.9,4126.8,3.2078]
[1760308669715,3.13195938,4126.9,4126.4,0.0022952]
[1760308669716,3.56777938,4126.9,4126.4,0.0022952]
[1760308670022,3.13195938,4126.9,4126.4,0.4381552]
[1760308670218,3.13195938,4126.9,4126.4,1.2570552]
[1760308670924,3.13195938,4126.9,4126.4,0.0022952]
[1760308671339,3.13195938,4126.9,4126.8,0.8189]
[1760308671593,0.00278827,4126.9,4126.8,4.0267]
[1760308672220,2.17728,4130.3,4128.6,0.43563]
[1760308672221,3.2078,4128.7,4128.6,0.43563]
[1760308672417,3.2078,4128.7,4128.6,0.8471]
[1760308672616,6.28979161,4128.7,4128.6,0.8471]
[1760308672811,3.2078,4128.7,4128.5,0.43564]
[1760308673014,6.42587357,4128.7,4128.6,0.8471]
[1760308673222,6.42587357,4128.7,4128.3,0.43566]